[Event "Berlin Championship 2024"]
[Site "Berlin"]
[Date "2024.04.01"]
[Round "3.8"]
[White "Noetzel, Felix"]
[Black "Dubessay, Bastien"]
[Result "0-1"]
[ECO "B15"]
[WhiteElo "2172"]
[BlackElo "2255"]
[Annotator "RC"]
[PlyCount "68"]
[EventDate "2024.03.30"]
[EventType "swiss"]
[EventCountry "GER"]
[SourceTitle "playchess.com"]
[Source "ChessBase"]
[SourceQuality "1"]
[TimeControl "40/5400+30:1800+30"]

1. e4 {[%emt 0:00:03]} c6 {[%emt 0:03:48]} 2. d4 {[%emt 0:00:06]} d5 {[%emt 0:00:16]} 3. Nc3 {[%emt 0:00:06]} dxe4 {[%emt 0:00:26]} 4. Nxe4 {[%emt 0:00:07]} Nf6 {[%emt 0:00:06]} 5. Nxf6+ {[%emt 0:01:07]} exf6 {[%emt 0:00:07]} 6. c3 {[%emt 0:00:36]} Bd6 {[%emt 0:00:18]} 7. Bd3 {[%emt 0:00:14]} O-O {[%emt 0:00:11]} 8. Ne2 {[%emt 0:00:48]} Re8 {[%emt 0:00:11]} 9. O-O {[%emt 0:00:14]} Na6 {[%emt 0:00:11]} 10. Ng3 {[%emt 0:07:56]} Nc7 {[%emt 0:00:34]} 11. c4 {[%emt 0:14:39]} g6 {[%emt 0:04:43]} 12. Be3 {[%emt 0:12:26]} f5 {[%emt 0:09:07]} 13. Qd2 {[%emt 0:03:33]} Qh4 {[%emt 0:10:47]} 14. f4 {[%emt 0:07:26]} a5 {[%emt 0:12:06]} 15. Qf2 {[%emt 0:08:04]} a4 {[%emt 0:07:10]} 16. a3 {[%emt 0:08:32]} b5 {[%emt 0:06:59]} 17. Rac1 {[%emt 0:22:02]} bxc4 {[%emt 0:14:06]} 18. Bxc4 {[%emt 0:00:06]} Ba6 {[%emt 0:00:33]} 19. Bd2 {[%emt 0:06:57]} Reb8 {[%emt 0:05:23]} 20. Qf3 {[%emt 0:03:04]} Rxb2 {[%emt 0:06:44]} 21. Qxc6 {[%emt 0:00:20]} Qd8 {[%emt 0:00:15]} 22. Bxa6 {[%emt 0:01:40]} Rxa6 {[%emt 0:00:09]} 23. Qc3 {[%emt 0:00:40]} Bxa3 {[%emt 0:03:59]} 24. Qxc7 {[%emt 0:00:51]} Qxc7 {[%emt 0:00:11]} 25. Rxc7 {[%emt 0:00:03]} Rxd2 {[%emt 0:00:05]} 26. Rb1 {[%emt 0:01:04]} Bb2 {[%emt 0:01:06]} 27. Nf1 {[%emt 0:00:34]} Bxd4+ {[%emt 0:00:09]} 28. Kh1 {[%emt 0:00:03]} Rb2 {[%emt 0:00:36]} 29. Rd1 {[%emt 0:00:18]} Bb6 {[%emt 0:04:12]} 30. Rcc1 {[%emt 0:01:05]} a3 {[%emt 0:00:19]} 31. Nd2 {[%emt 0:00:28]} a2 {[%emt 0:02:26]} 32. Nc4 {[%emt 0:00:10]} Rc2 {[%emt 0:01:19]} 33. Rxc2 {[%emt 0:01:00]} a1=Q {[%emt 0:00:06]} 34. Rcc1 {[%emt 0:00:02]} Qa4 {[%emt 0:00:58]} 0-1

[Event "Berlin Championship 2024"]
[Site "Berlin"]
[Date "2024.04.02"]
[Round "4.1"]
[White "Lagunow, Raphael"]
[Black "Schmidek, Emil"]
[Result "1-0"]
[ECO "E10"]
[WhiteElo "2421"]
[BlackElo "2439"]
[Annotator "RC"]
[PlyCount "49"]
[EventDate "2024.03.30"]
[EventType "swiss"]
[EventCountry "GER"]
[SourceTitle "playchess.com"]
[Source "ChessBase"]
[SourceQuality "1"]
[TimeControl "40/5400+30:1800+30"]

1. d4 {[%emt 0:00:04]} Nf6 {[%emt 0:00:11]} 2. Nf3 {[%emt 0:00:38]} e6 {[%emt 0:00:19]} 3. c4 {[%emt 0:00:19]} a6 {[%emt 0:00:09]} 4. g3 {[%emt 0:01:03]} b5 {[%emt 0:00:29]} 5. b3 {[%emt 0:01:28]} Bb7 {[%emt 0:00:32]} 6. Bg2 {[%emt 0:05:34]} c5 {[%emt 0:09:35]} 7. d5 {[%emt 0:11:26]} exd5 {[%emt 0:00:41]} 8. Nh4 {[%emt 0:00:34]} Ne4 {[%emt 0:24:06]} 9. cxd5 {[%emt 0:05:54]} Nxf2 {[%emt 0:09:19]} 10. Kxf2 {[%emt 0:03:20]} Qf6+ {[%emt 0:00:08]} 11. Bf4 {[%emt 0:03:52]} Qxa1 {[%emt 0:00:58]} 12. Qc2 {[%emt 0:00:08]} Qf6 {[%emt 0:12:45]} 13. Nc3 {[%emt 0:01:09]} Qb6 {[%emt 0:06:40]} 14. Rd1 {[%emt 0:25:06]} d6 {[%emt 0:05:24]} 15. Bh3 {[%emt 0:12:13]} Qc7 {[%emt 0:03:54]} 16. Ne4 {[%emt 0:03:27]} a5 {[%emt 0:05:49]} 17. Nf5 {[%emt 0:04:09]} Ra6 {[%emt 0:00:12]} 18. Qb2 {[%emt 0:00:59]} f6 {[%emt 0:04:52]} 19. Nxf6+ {[%emt 0:00:26]} Kf7 {[%emt 0:01:26]} 20. Ne4 {[%emt 0:05:42]} Bc8 {[%emt 0:09:37]} 21. Nexd6+ {[%emt 0:04:00]} Rxd6 {[%emt 0:00:14]} 22. Bxd6 {[%emt 0:00:06]} Qd8 {[%emt 0:01:02]} 23. Qe5 {[%emt 0:04:20]} Na6 {[%emt 0:01:58]} 24. Bxf8 {[%emt 0:02:26]} Qxf8 {[%emt 0:00:29]} 25. Kg2 {[%emt 0:02:19]} 1-0

[Event "Berlin Championship 2024"]
[Site "Berlin"]
[Date "2024.04.02"]
[Round "4.2"]
[White "Lagunow, Alexander"]
[Black "Jahnz, Laurin"]
[Result "0-1"]
[ECO "A90"]
[WhiteElo "2350"]
[BlackElo "2051"]
[Annotator "RC"]
[PlyCount "78"]
[EventDate "2024.03.30"]
[EventType "swiss"]
[EventCountry "GER"]
[SourceTitle "playchess.com"]
[Source "ChessBase"]
[SourceQuality "1"]
[TimeControl "40/5400+30:1800+30"]

1. c4 {[%emt 0:00:02]} e6 {[%emt 0:00:21]} 2. Nf3 {[%emt 0:00:17]} d5 {[%emt 0:00:05]} 3. d4 {[%emt 0:00:06]} c6 {[%emt 0:00:25]} 4. Nbd2 {[%emt 0:00:29]} f5 {[%emt 0:00:15]} 5. g3 {[%emt 0:00:24]} Nf6 {[%emt 0:00:05]} 6. Bg2 {[%emt 0:00:04]} Bd6 {[%emt 0:00:06]} 7. O-O {[%emt 0:00:20]} O-O {[%emt 0:00:04]} 8. b3 {[%emt 0:00:29]} Ne4 {[%emt 0:00:38]} 9. Bb2 {[%emt 0:00:26]} Qf6 {[%emt 0:01:43]} 10. Ne5 {[%emt 0:13:32]} Nd7 {[%emt 0:09:25]} 11. Nxe4 {[%emt 0:11:18]} dxe4 {[%emt 0:08:44]} 12. f4 {[%emt 0:03:09]} exf3 {[%emt 0:02:09]} 13. Nxf3 {[%emt 0:00:38]} e5 {[%emt 0:19:52]} 14. Kh1 {[%emt 0:05:50]} Qe7 {[%emt 0:07:05]} 15. c5 {[%emt 0:18:52]} Bc7 {[%emt 0:01:51]} 16. Qc2 {[%emt 0:01:23]} e4 {[%emt 0:12:13]} 17. Nh4 {[%emt 0:03:17]} g6 {[%emt 0:04:40]} 18. Qc4+ {[%emt 0:03:01]} Rf7 {[%emt 0:02:06]} 19. Bh3 {[%emt 0:22:29]} Nf6 {[%emt 0:02:08]} 20. Ng2 {[%emt 0:00:24]} Nd5 {[%emt 0:00:45]} 21. Qc1 {[%emt 0:02:18]} g5 {[%emt 0:00:49]} 22. Ne3 {[%emt 0:02:47]} f4 {[%emt 0:04:26]} 23. Nxd5 {[%emt 0:01:55]} cxd5 {[%emt 0:00:01]} 24. Bxc8 {[%emt 0:02:41]} Rxc8 {[%emt 0:00:03]} 25. Qc3 {[%emt 0:01:28]} fxg3 {[%emt 0:07:00]} 26. hxg3 {[%emt 0:00:42]} Qe6 {[%emt 0:00:45]} 27. Kg2 {[%emt 0:01:37]} Rcf8 {[%emt 0:00:21]} 28. Rxf7 {[%emt 0:01:20]} Rxf7 {[%emt 0:01:04]} 29. Rf1 {[%emt 0:00:15]} Rxf1 {[%emt 0:00:12]} 30. Kxf1 {[%emt 0:00:02]} Qh3+ {[%emt 0:00:06]} 31. Kf2 {[%emt 0:00:54]} Qh2+ {[%emt 0:00:04]} 32. Ke1 {[%emt 0:00:05]} Bxg3+ {[%emt 0:04:41]} 33. Kd1 {[%emt 0:00:10]} Qg1+ {[%emt 0:00:15]} 34. Kc2 {[%emt 0:00:06]} Qf2 {[%emt 0:00:57]} 35. Kb1 {[%emt 0:01:04]} Qe1+ {[%emt 0:01:14]} 36. Qxe1 {[%emt 0:00:05]} Bxe1 {[%emt 0:00:04]} 37. Bc1 {[%emt 0:00:05]} g4 {[%emt 0:00:11]} 38. Kc2 {[%emt 0:00:09]} g3 {[%emt 0:00:13]} 39. Kd1 {[%emt 0:00:03]} Bf2 {[%emt 0:12:54]} 0-1

[Event "Berlin Championship 2024"]
[Site "Berlin"]
[Date "2024.04.02"]
[Round "4.3"]
[White "Muse, Drazen"]
[Black "Baldauf, Marco"]
[Result "1/2-1/2"]
[ECO "D24"]
[WhiteElo "2316"]
[BlackElo "2481"]
[Annotator "RC"]
[PlyCount "51"]
[EventDate "2024.03.30"]
[EventType "swiss"]
[EventCountry "GER"]
[SourceTitle "playchess.com"]
[Source "ChessBase"]
[SourceQuality "1"]
[TimeControl "40/5400+30:1800+30"]

1. d4 {[%emt 0:09:59]} d5 {[%emt 0:00:15]} 2. c4 {[%emt 0:00:12]} e6 {[%emt 0:00:15]} 3. Nf3 {[%emt 0:00:23]} Nf6 {[%emt 0:00:17]} 4. Bg5 {[%emt 0:01:00]} dxc4 {[%emt 0:04:16]} 5. Nc3 {[%emt 0:00:41]} a6 {[%emt 0:04:18]} 6. e4 {[%emt 0:04:16]} b5 {[%emt 0:00:04]} 7. a4 {[%emt 0:00:12]} b4 {[%emt 0:10:42]} 8. Nb1 {[%emt 0:00:29]} Be7 {[%emt 0:02:06]} 9. e5 {[%emt 0:01:18]} Nd5 {[%emt 0:00:20]} 10. Bxe7 {[%emt 0:00:24]} Qxe7 {[%emt 0:00:06]} 11. Bxc4 {[%emt 0:00:05]} Bb7 {[%emt 0:00:18]} 12. Nbd2 {[%emt 0:00:10]} Nd7 {[%emt 0:12:38]} 13. Nb3 {[%emt 0:04:11]} N5b6 {[%emt 0:06:54]} 14. Be2 {[%emt 0:03:37]} c5 {[%emt 0:55:01]} 15. O-O {[%emt 0:02:12]} O-O {[%emt 0:00:00]} 16. a5 {[%emt 0:00:50]} Nd5 {[%emt 0:00:00]} 17. Rc1 {[%emt 0:02:08]} Rac8 {[%emt 0:00:00]} 18. Qd2 {[%emt 0:02:51]} h6 {[%emt 0:00:00]} 19. h4 {[%emt 0:01:55]} Rc7 {[%emt 0:00:00]} 20. Rc2 {[%emt 0:02:21]} Rfc8 {[%emt 0:00:00]} 21. Rfc1 {[%emt 0:01:00]} Qf8 {[%emt 0:00:00]} 22. Rc4 {[%emt 0:05:00]} cxd4 {[%emt 0:00:00]} 23. Rxc7 {[%emt 0:01:44]} Rxc7 {[%emt 0:00:00]} 24. Rxc7 {[%emt 0:00:04]} Nxc7 {[%emt 0:00:00]} 25. Qxd4 {[%emt 0:00:16]} Nd5 {[%emt 0:00:00]} 26. Nfd2 {[%emt 0:00:35]} 1/2-1/2

[Event "Berlin Championship 2024"]
[Site "Berlin"]
[Date "2024.04.02"]
[Round "4.4"]
[White "Polzin, Rainer"]
[Black "Hesse, Henrik"]
[Result "1-0"]
[ECO "B43"]
[WhiteElo "2401"]
[BlackElo "2312"]
[Annotator "RC"]
[PlyCount "105"]
[EventDate "2024.03.30"]
[EventType "swiss"]
[EventCountry "GER"]
[SourceTitle "playchess.com"]
[Source "ChessBase"]
[SourceQuality "1"]
[TimeControl "40/5400+30:1800+30"]

1. e4 {[%emt 0:00:04]} c5 {[%emt 0:00:18]} 2. Nf3 {[%emt 0:02:00]} e6 {[%emt 0:00:11]} 3. d4 {[%emt 0:00:05]} cxd4 {[%emt 0:00:05]} 4. Nxd4 {[%emt 0:00:02]} a6 {[%emt 0:01:34]} 5. Nc3 {[%emt 0:00:07]} b5 {[%emt 0:01:55]} 6. Bd3 {[%emt 0:01:15]} Bb7 {[%emt 0:18:48]} 7. O-O {[%emt 0:03:01]} Bc5 {[%emt 0:06:09]} 8. Nb3 {[%emt 0:17:46]} Ba7 {[%emt 0:09:10]} 9. Qe2 {[%emt 0:07:39]} b4 {[%emt 0:05:28]} 10. Nd1 {[%emt 0:13:12]} Nc6 {[%emt 0:04:11]} 11. Be3 {[%emt 0:02:28]} Bxe3 {[%emt 0:48:11]} 12. Nxe3 {[%emt 0:01:46]} d6 {[%emt 0:00:00]} 13. Rad1 {[%emt 0:07:37]} Nf6 {[%emt 0:00:00]} 14. Nc4 {[%emt 0:00:12]} Qc7 {[%emt 0:00:00]} 15. f4 {[%emt 0:05:47]} e5 {[%emt 0:00:00]} 16. Ne3 {[%emt 0:13:52]} Ne7 {[%emt 0:00:00]} 17. Qe1 {[%emt 0:13:39]} Qb6 {[%emt 0:00:00]} 18. Kh1 {[%emt 0:00:40]} O-O {[%emt 0:00:00]} 19. Nc4 {[%emt 0:00:47]} Qc7 {[%emt 0:00:00]} 20. Qxb4 {[%emt 0:02:12]} Nxe4 {[%emt 0:00:00]} 21. Nca5 {[%emt 0:06:49]} Nc5 {[%emt 0:00:00]} 22. Nxc5 {[%emt 0:00:00]} Bxg2+ {[%emt 0:00:00]} 23. Kxg2 {[%emt 0:00:00]} dxc5 {[%emt 0:00:00]} 24. Qb7 {[%emt 0:00:00]} Qxa5 {[%emt 0:00:00]} 25. Qxe7 {[%emt 0:00:00]} Rae8 {[%emt 0:00:05]} 26. Qh4 {[%emt 0:00:12]} e4 {[%emt 0:00:01]} 27. Bc4 {[%emt 0:00:31]} e3 {[%emt 0:02:14]} 28. Rfe1 {[%emt 0:01:41]} Qa4 {[%emt 0:01:54]} 29. b3 {[%emt 0:00:17]} Qc6+ {[%emt 0:00:20]} 30. Kg1 {[%emt 0:00:38]} Qg6+ {[%emt 0:00:40]} 31. Kh1 {[%emt 0:00:36]} Qe4+ {[%emt 0:04:03]} 32. Kg1 {[%emt 0:00:29]} Qg6+ {[%emt 0:00:08]} 33. Qg3 {[%emt 0:00:35]} Qxc2 {[%emt 0:00:06]} 34. Rd7 {[%emt 0:00:40]} e2 {[%emt 0:01:19]} 35. Qf3 {[%emt 0:00:31]} Qg6+ {[%emt 0:00:37]} 36. Kf2 {[%emt 0:00:33]} Qh6 {[%emt 0:00:23]} 37. Kg2 {[%emt 0:00:36]} Qg6+ {[%emt 0:00:35]} 38. Qg3 {[%emt 0:00:32]} Qc6+ {[%emt 0:00:10]} 39. Rd5 {[%emt 0:00:04]} Re6 {[%emt 0:00:53]} 40. f5 {[%emt 0:00:27]} Re4 {[%emt 0:00:24]} 41. Qd6 {[%emt 0:09:23]} Qe8 {[%emt 0:03:56]} 42. Kf2 {[%emt 0:02:11]} Re3 {[%emt 0:07:42]} 43. Rxe2 {[%emt 0:08:18]} Rxe2+ {[%emt 0:00:14]} 44. Bxe2 {[%emt 0:00:02]} Qe4 {[%emt 0:00:07]} 45. Bf3 {[%emt 0:03:47]} Qc2+ {[%emt 0:00:21]} 46. Kg3 {[%emt 0:00:36]} h6 {[%emt 0:05:59]} 47. f6 {[%emt 0:02:39]} Qg6+ {[%emt 0:00:39]} 48. Kf2 {[%emt 0:00:22]} Re8 {[%emt 0:00:52]} 49. Qe7 {[%emt 0:03:05]} Qc2+ {[%emt 0:04:52]} 50. Be2 {[%emt 0:00:35]} Rb8 {[%emt 0:01:01]} 51. Rd8+ {[%emt 0:00:28]} Rxd8 {[%emt 0:00:30]} 52. Qxd8+ {[%emt 0:00:02]} Kh7 {[%emt 0:00:05]} 53. Qd3+ {[%emt 0:00:07]} 1-0

[Event "Berlin Championship 2024"]
[Site "Berlin"]
[Date "2024.04.02"]
[Round "4.5"]
[White "Poltorak, Sebastian"]
[Black "Dubessay, Bastien"]
[Result "1-0"]
[ECO "D35"]
[WhiteElo "2392"]
[BlackElo "2255"]
[Annotator "RC"]
[PlyCount "151"]
[EventDate "2024.03.30"]
[EventType "swiss"]
[EventCountry "GER"]
[SourceTitle "playchess.com"]
[Source "ChessBase"]
[SourceQuality "1"]
[TimeControl "40/5400+30:1800+30"]

1. d4 {[%emt 0:00:03]} d5 {[%emt 0:02:39]} 2. c4 {[%emt 0:00:14]} e6 {[%emt 0:00:16]} 3. Nc3 {[%emt 0:00:08]} Nf6 {[%emt 0:00:31]} 4. cxd5 {[%emt 0:00:07]} exd5 {[%emt 0:00:05]} 5. Bg5 {[%emt 0:00:09]} c6 {[%emt 0:00:29]} 6. e3 {[%emt 0:00:05]} h6 {[%emt 0:00:12]} 7. Bh4 {[%emt 0:00:07]} Bf5 {[%emt 0:00:24]} 8. Qf3 {[%emt 0:01:26]} Be6 {[%emt 0:00:13]} 9. Bxf6 {[%emt 0:00:37]} Qxf6 {[%emt 0:00:07]} 10. Qxf6 {[%emt 0:00:04]} gxf6 {[%emt 0:00:06]} 11. Bd3 {[%emt 0:05:37]} a5 {[%emt 0:00:27]} 12. Nge2 {[%emt 0:05:58]} a4 {[%emt 0:01:07]} 13. Kd2 {[%emt 0:12:28]} a3 {[%emt 0:11:14]} 14. b3 {[%emt 0:05:49]} Na6 {[%emt 0:01:41]} 15. Rac1 {[%emt 0:07:51]} Nb4 {[%emt 0:00:47]} 16. Bb1 {[%emt 0:02:10]} h5 {[%emt 0:09:55]} 17. h4 {[%emt 0:02:51]} b5 {[%emt 0:09:41]} 18. Nf4 {[%emt 0:01:33]} Bd6 {[%emt 0:04:35]} 19. Nd3 {[%emt 0:03:13]} Rg8 {[%emt 0:06:45]} 20. g3 {[%emt 0:01:07]} Nxd3 {[%emt 0:06:36]} 21. Bxd3 {[%emt 0:00:10]} Bb4 {[%emt 0:03:41]} 22. Rc2 {[%emt 0:03:09]} Kd7 {[%emt 0:04:13]} 23. Rhc1 {[%emt 0:03:40]} Kd6 {[%emt 0:07:50]} 24. Ke2 {[%emt 0:00:31]} Bg4+ {[%emt 0:08:34]} 25. Kf1 {[%emt 0:00:13]} Bh3+ {[%emt 0:00:06]} 26. Kg1 {[%emt 0:00:25]} Bxc3 {[%emt 0:02:16]} 27. Rxc3 {[%emt 0:00:07]} Ra6 {[%emt 0:01:10]} 28. Rc5 {[%emt 0:04:40]} Re8 {[%emt 0:02:09]} 29. Kh2 {[%emt 0:02:27]} Bg4 {[%emt 0:01:28]} 30. Kg2 {[%emt 0:00:22]} Rb6 {[%emt 0:00:17]} 31. Re1 {[%emt 0:02:30]} Re7 {[%emt 0:04:50]} 32. f3 {[%emt 0:06:04]} Be6 {[%emt 0:00:20]} 33. e4 {[%emt 0:01:02]} Rb8 {[%emt 0:01:11]} 34. Kf2 {[%emt 0:01:46]} Ra8 {[%emt 0:05:35]} 35. Rec1 {[%emt 0:05:19]} Ra6 {[%emt 0:01:05]} 36. Ke3 {[%emt 0:00:46]} Re8 {[%emt 0:02:32]} 37. Kf4 {[%emt 0:01:01]} Bd7 {[%emt 0:01:39]} 38. R1c2 {[%emt 0:01:38]} Rb6 {[%emt 0:00:11]} 39. Re2 {[%emt 0:02:18]} b4 {[%emt 0:00:59]} 40. Ra5 {[%emt 0:02:46]} Rbb8 {[%emt 0:01:33]} 41. Rc2 {[%emt 0:34:58]} Ra8 {[%emt 0:04:17]} 42. Rac5 {[%emt 0:00:00]} Rac8 {[%emt 0:04:01]} 43. Rg2 {[%emt 0:00:00]} Rh8 {[%emt 0:02:51]} 44. Rg1 {[%emt 0:00:00]} Rhe8 {[%emt 0:03:07]} 45. Rh1 {[%emt 0:00:00]} Rg8 {[%emt 0:00:59]} 46. Rh2 {[%emt 0:00:00]} Rge8 {[%emt 0:02:24]} 47. Bf1 {[%emt 0:00:00]} Rg8 {[%emt 0:16:52]} 48. Bd3 {[%emt 0:00:00]} Rge8 {[%emt 0:00:00]} 49. Rh1 {[%emt 0:00:00]} Rg8 {[%emt 0:00:00]} 50. Re1 {[%emt 0:00:00]} Rge8 {[%emt 0:00:00]} 51. Re2 {[%emt 0:00:00]} Rh8 {[%emt 0:00:00]} 52. Ke3 {[%emt 0:00:00]} Rhg8 {[%emt 0:00:00]} 53. Kf2 {[%emt 0:00:00]} Rge8 {[%emt 0:00:00]} 54. Re3 {[%emt 0:00:00]} Rh8 {[%emt 0:00:00]} 55. Ba6 {[%emt 0:00:00]} Ra8 {[%emt 0:00:00]} 56. Bf1 {[%emt 0:00:00]} Rac8 {[%emt 0:00:00]} 57. Re1 {[%emt 0:00:00]} Rhe8 {[%emt 0:00:00]} 58. Bg2 {[%emt 0:00:00]} Rb8 {[%emt 0:01:13]} 59. Rec1 {[%emt 0:00:00]} dxe4 {[%emt 0:01:46]} 60. fxe4 {[%emt 0:00:00]} Rb5 {[%emt 0:00:10]} 61. Bf3 {[%emt 0:00:01]} Rxc5 {[%emt 0:00:15]} 62. Rxc5 {[%emt 0:00:02]} Be6 {[%emt 0:00:09]} 63. Bxh5 {[%emt 0:04:29]} Ra8 {[%emt 0:00:19]} 64. Bd1 {[%emt 0:00:26]} Rg8 {[%emt 0:00:50]} 65. h5 {[%emt 0:00:31]} Rh8 {[%emt 0:00:30]} 66. g4 {[%emt 0:00:31]} Rh6 {[%emt 0:00:26]} 67. Kg3 {[%emt 0:00:06]} Rh8 {[%emt 0:00:07]} 68. Kf4 {[%emt 0:00:05]} Rd8 {[%emt 0:00:56]} 69. Ke3 {[%emt 0:04:42]} Rh8 {[%emt 0:00:09]} 70. Ra5 {[%emt 0:00:26]} Rg8 {[%emt 0:00:22]} 71. Kf4 {[%emt 0:00:52]} Rd8 {[%emt 0:00:10]} 72. Ra7 {[%emt 0:01:51]} Rb8 {[%emt 0:02:05]} 73. Bf3 {[%emt 0:00:58]} Bd7 {[%emt 0:01:10]} 74. e5+ {[%emt 0:01:14]} fxe5+ {[%emt 0:00:04]} 75. dxe5+ {[%emt 0:00:02]} Ke6 {[%emt 0:00:08]} 76. g5 {[%emt 0:00:06]} 1-0

[Event "Berlin Championship 2024"]
[Site "Berlin"]
[Date "2024.04.02"]
[Round "4.6"]
[White "Thiede, Lars"]
[Black "Yatskar, Martin"]
[Result "1-0"]
[ECO "C59"]
[WhiteElo "2388"]
[BlackElo "2066"]
[Annotator "RC"]
[PlyCount "133"]
[EventDate "2024.03.30"]
[EventType "swiss"]
[EventCountry "GER"]
[SourceTitle "playchess.com"]
[Source "ChessBase"]
[SourceQuality "1"]
[TimeControl "40/5400+30:1800+30"]

1. e4 {[%emt 0:00:04]} e5 {[%emt 0:00:08]} 2. Nf3 {[%emt 0:00:09]} Nc6 {[%emt 0:00:07]} 3. Bc4 {[%emt 0:00:14]} Nf6 {[%emt 0:00:08]} 4. Ng5 {[%emt 0:00:15]} d5 {[%emt 0:00:09]} 5. exd5 {[%emt 0:00:07]} Na5 {[%emt 0:00:04]} 6. Bb5+ {[%emt 0:00:11]} c6 {[%emt 0:00:06]} 7. dxc6 {[%emt 0:00:09]} bxc6 {[%emt 0:00:05]} 8. Be2 {[%emt 0:00:21]} h6 {[%emt 0:00:31]} 9. Nf3 {[%emt 0:00:09]} e4 {[%emt 0:01:58]} 10. Ne5 {[%emt 0:00:14]} Qd4 {[%emt 0:07:14]} 11. Ng4 {[%emt 0:04:36]} Bxg4 {[%emt 0:00:12]} 12. Bxg4 {[%emt 0:00:08]} Bc5 {[%emt 0:00:37]} 13. O-O {[%emt 0:02:58]} h5 {[%emt 0:00:03]} 14. Be2 {[%emt 0:01:45]} Qe5 {[%emt 0:15:37]} 15. d4 {[%emt 0:12:57]} Bxd4 {[%emt 0:06:18]} 16. Bf4 {[%emt 0:02:23]} Qxf4 {[%emt 0:00:34]} 17. Qxd4 {[%emt 0:00:12]} O-O {[%emt 0:00:36]} 18. Nc3 {[%emt 0:04:52]} Rfe8 {[%emt 0:11:48]} 19. Rad1 {[%emt 0:13:54]} Qe5 {[%emt 0:06:12]} 20. Rfe1 {[%emt 0:03:58]} Rab8 {[%emt 0:09:54]} 21. b3 {[%emt 0:02:23]} c5 {[%emt 0:02:15]} 22. Qxe5 {[%emt 0:01:09]} Rxe5 {[%emt 0:00:05]} 23. Bb5 {[%emt 0:01:41]} Re6 {[%emt 0:08:33]} 24. Ba4 {[%emt 0:05:55]} Rbb6 {[%emt 0:09:34]} 25. g3 {[%emt 0:04:52]} Re5 {[%emt 0:03:31]} 26. Rd8+ {[%emt 0:04:23]} Kh7 {[%emt 0:00:11]} 27. f4 {[%emt 0:01:19]} Ree6 {[%emt 0:00:43]} 28. Nd5 {[%emt 0:01:44]} Nc6 {[%emt 0:00:18]} 29. Nxf6+ {[%emt 0:11:46]} gxf6 {[%emt 0:00:11]} 30. Bxc6 {[%emt 0:02:22]} Rbxc6 {[%emt 0:00:03]} 31. Rd5 {[%emt 0:00:35]} Kh6 {[%emt 0:02:24]} 32. c4 {[%emt 0:02:27]} Re7 {[%emt 0:03:33]} 33. Kg2 {[%emt 0:04:16]} Kg6 {[%emt 0:00:17]} 34. f5+ {[%emt 0:02:02]} Kh6 {[%emt 0:00:39]} 35. Kf2 {[%emt 0:01:06]} Kg5 {[%emt 0:01:46]} 36. Ke3 {[%emt 0:01:30]} a5 {[%emt 0:02:34]} 37. Rf1 {[%emt 0:07:21]} a4 {[%emt 0:00:22]} 38. h4+ {[%emt 0:00:44]} Kh6 {[%emt 0:01:20]} 39. Rc1 {[%emt 0:01:06]} axb3 {[%emt 0:00:06]} 40. axb3 {[%emt 0:00:05]} Kg7 {[%emt 0:03:11]} 41. Rc3 {[%emt 0:03:26]} Kh7 {[%emt 0:07:55]} 42. Kd2 {[%emt 0:06:47]} Kg7 {[%emt 0:02:45]} 43. Re3 {[%emt 0:02:07]} Re5 {[%emt 0:02:44]} 44. Rc3 {[%emt 0:04:37]} Re7 {[%emt 0:03:29]} 45. Rc2 {[%emt 0:01:14]} Rb6 {[%emt 0:04:25]} 46. Rb2 {[%emt 0:01:05]} Rc6 {[%emt 0:01:20]} 47. Ra2 {[%emt 0:02:20]} Rb6 {[%emt 0:03:07]} 48. Ra3 {[%emt 0:09:21]} e3+ {[%emt 0:03:08]} 49. Ke2 {[%emt 0:00:39]} Re5 {[%emt 0:00:03]} 50. Rxe5 {[%emt 0:01:21]} fxe5 {[%emt 0:00:03]} 51. Kxe3 {[%emt 0:00:07]} Kf6 {[%emt 0:00:09]} 52. Ke4 {[%emt 0:00:17]} Rd6 {[%emt 0:00:06]} 53. Ra5 {[%emt 0:00:33]} Rd4+ {[%emt 0:00:15]} 54. Ke3 {[%emt 0:00:07]} Rg4 {[%emt 0:00:10]} 55. Kf3 {[%emt 0:00:32]} Kxf5 {[%emt 0:00:24]} 56. Rxc5 {[%emt 0:00:30]} Rg8 {[%emt 0:05:00]} 57. b4 {[%emt 0:00:32]} Ra8 {[%emt 0:00:31]} 58. Ra5 {[%emt 0:00:43]} Rd8 {[%emt 0:00:03]} 59. b5 {[%emt 0:02:09]} e4+ {[%emt 0:03:18]} 60. Ke2 {[%emt 0:00:11]} Kg4 {[%emt 0:00:42]} 61. b6 {[%emt 0:01:13]} Kxg3 {[%emt 0:00:15]} 62. c5 {[%emt 0:00:12]} f5 {[%emt 0:00:12]} 63. c6 {[%emt 0:01:55]} f4 {[%emt 0:00:42]} 64. c7 {[%emt 0:00:14]} f3+ {[%emt 0:00:12]} 65. Ke3 {[%emt 0:00:13]} Rf8 {[%emt 0:00:48]} 66. b7 {[%emt 0:00:50]} f2 {[%emt 0:00:06]} 67. Ra1 {[%emt 0:00:20]} 1-0

[Event "Berlin Championship 2024"]
[Site "Berlin"]
[Date "2024.04.02"]
[Round "4.7"]
[White "Syre, Christian"]
[Black "Florstedt, Johannes"]
[Result "0-1"]
[ECO "A31"]
[WhiteElo "2128"]
[BlackElo "2348"]
[Annotator "RC"]
[PlyCount "72"]
[EventDate "2024.03.30"]
[EventType "swiss"]
[EventCountry "GER"]
[SourceTitle "playchess.com"]
[Source "ChessBase"]
[SourceQuality "1"]
[TimeControl "40/5400+30:1800+30"]

1. Nf3 {[%emt 0:00:29]} c5 {[%emt 0:11:15]} 2. c4 {[%emt 0:00:43]} Nf6 {[%emt 0:00:18]} 3. d4 {[%emt 0:00:31]} cxd4 {[%emt 0:01:22]} 4. Nxd4 {[%emt 0:00:06]} e5 {[%emt 0:02:18]} 5. Nb5 {[%emt 0:00:26]} d5 {[%emt 0:00:09]} 6. cxd5 {[%emt 0:00:13]} Bc5 {[%emt 0:00:12]} 7. e3 {[%emt 0:01:46]} O-O {[%emt 0:00:23]} 8. Be2 {[%emt 0:00:06]} Nxd5 {[%emt 0:03:55]} 9. O-O {[%emt 0:00:58]} a6 {[%emt 0:11:34]} 10. N5c3 {[%emt 0:00:43]} Nf6 {[%emt 0:00:17]} 11. Bf3 {[%emt 0:14:58]} Nc6 {[%emt 0:05:07]} 12. Nd2 {[%emt 0:06:32]} Be6 {[%emt 0:04:16]} 13. Nde4 {[%emt 0:00:14]} Nxe4 {[%emt 0:00:45]} 14. Bxe4 {[%emt 0:02:15]} f5 {[%emt 0:01:25]} 15. Bd5 {[%emt 0:00:50]} Bxd5 {[%emt 0:00:08]} 16. Nxd5 {[%emt 0:00:46]} Kh8 {[%emt 0:02:38]} 17. b4 {[%emt 0:04:23]} Bxb4 {[%emt 0:14:47]} 18. Nxb4 {[%emt 0:00:12]} Nxb4 {[%emt 0:00:38]} 19. Ba3 {[%emt 0:02:12]} a5 {[%emt 0:00:32]} 20. Rb1 {[%emt 0:06:29]} Qe7 {[%emt 0:15:00]} 21. Qb3 {[%emt 0:08:46]} f4 {[%emt 0:02:58]} 22. Bxb4 {[%emt 0:05:54]} axb4 {[%emt 0:00:07]} 23. Qxb4 {[%emt 0:00:02]} Qg5 {[%emt 0:00:38]} 24. exf4 {[%emt 0:00:05]} exf4 {[%emt 0:00:15]} 25. f3 {[%emt 0:00:48]} h6 {[%emt 0:02:55]} 26. Rf2 {[%emt 0:00:54]} Qe5 {[%emt 0:00:42]} 27. Re1 {[%emt 0:03:34]} Qd5 {[%emt 0:01:46]} 28. Rd2 {[%emt 0:01:28]} Qc6 {[%emt 0:00:57]} 29. Rd6 {[%emt 0:01:24]} Qa4 {[%emt 0:06:10]} 30. Qb2 {[%emt 0:19:31]} Rfe8 {[%emt 0:02:32]} 31. Ra1 {[%emt 0:07:22]} Rad8 {[%emt 0:04:24]} 32. Rxh6+ {[%emt 0:02:36]} Kg8 {[%emt 0:00:08]} 33. Rb6 {[%emt 0:02:49]} Rd1+ {[%emt 0:00:15]} 34. Kf2 {[%emt 0:00:47]} Rxa1 {[%emt 0:00:16]} 35. Qxa1 {[%emt 0:00:33]} Qc2+ {[%emt 0:00:10]} 36. Kf1 {[%emt 0:01:42]} Qe2+ {[%emt 0:00:08]} 0-1